[Event "Bijnor Open 2024"]
[Site "Bijnor"]
[Date "2024.03.18"]
[Round "4.5"]
[White "Sai Agni Jeevitesh, J."]
[Black "Sparsh Yadav"]
[Result "1/2-1/2"]
[ECO "D05"]
[WhiteElo "2285"]
[BlackElo "1775"]
[Annotator "TA"]
[PlyCount "68"]
[EventDate "2024.03.17"]
[EventCountry "IND"]
[SourceTitle "playchess.com"]
[Source "ChessBase"]
[SourceQuality "1"]
[TimeControl "5400+30"]

{[%evp 14,68,18,14,10,15,32,30,52,38,57,47,50,52,69,56,103,53,58,78,105,87,145,142,140,127,187,108,118,83,86,52,93,98,94,74,75,77,73,28,39,26,89,25,41,17,18,-11,0,-32,0,0,0,0,0,0,0]} 1. d4 {[%emt 0:01:39]} Nf6 {[%emt 0:01:09]} 2. Nf3 {[%emt 0:00:21]} e6 {[%emt 0:00:19]} 3. e3 {[%emt 0:00:17]} c5 {[%emt 0:00:35]} 4. Bd3 {[%emt 0:02:02]} Nc6 {[%emt 0:00:37]} 5. O-O {[%emt 0:00:14]} d5 {[%emt 0:00:17]} 6. b3 {[%emt 0:00:13]} Be7 {[%emt 0:00:19]} 7. Bb2 {[%emt 0:00:05]} O-O {[%emt 0:00:30]} 8. Nbd2 {[%emt 0:00:15]} cxd4 {[%emt 0:01:00]} 9. exd4 {[%emt 0:00:16]} Bd7 {[%emt 0:00:31]} 10. a3 {[%emt 0:00:50]} Bd6 {[%emt 0:00:48] Weiß hat minimalen Vorteil.} 11. Ne5 {[%emt 0:02:05]} Ne7 {[%emt 0:09:17]} 12. f4 {[%emt 0:03:48]} Bc6 {[%emt 0:04:04]} 13. Qf3 {[%emt 0:00:25]} Ng6 {[%emt 0:01:36]} 14. Rae1 {[%emt 0:02:55]} Re8 {[%emt 0:02:51]} (14... Qc7 $14) 15. g4 {[%emt 0:02:50]} ({Vorzuziehen ist} 15. Qe3 $16) 15... Qc7 {[%emt 0:02:16]} 16. g5 {[%emt 0:04:10]} Nd7 {[%emt 0:02:16]} 17. h4 {[%emt 0:03:20]} Ndf8 {[%emt 0:01:27]} (17... Nxh4 $2 {verliert.} 18. Bxh7+ Kxh7 19. Qh5+ Kg8 20. Qxf7+ (20. Qxh4 Nf8 $16) 20... Kh8 21. Qh5+ Kg8 22. Qxh4 $18) ({Günstiger ist} 17... f5) 18. h5 $16 {[%emt 0:00:50]} Ne7 {[%emt 0:03:19]} 19. Qg4 {[%emt 0:07:42] Weiß hat aktiveres Spiel.} g6 {[%emt 0:03:08] [#]} (19... Nf5 $16 20. Ndf3 g6) 20. hxg6 {[%emt 0:04:03]} (20. Ndf3 $1 $18) 20... fxg6 {[%emt 0:00:08]} 21. Re2 {[%emt 0:02:13]} Nf5 {[%emt 0:01:41]} 22. Rfe1 {[%emt 0:00:12]} Re7 {[%emt 0:02:20]} 23. Ndf3 {[%emt 0:00:13]} Rae8 {[%emt 0:00:55]} 24. Qh3 {[%emt 0:00:16]} Bxe5 {[%emt 0:01:59]} 25. Nxe5 {[%emt 0:01:27]} Nd7 {[%emt 0:00:49]} 26. a4 {[%emt 0:11:45][%cal Oe5g6] [#] Droht Nxg6! und aus.} Nxe5 {[%emt 0:02:40]} 27. Rxe5 {[%emt 0:00:36][%cal Rd3f5]} ({Ein No Go ist} 27. dxe5 Qb6+ 28. Rf2 d4 $15) 27... Qd6 {[%emt 0:02:21]} (27... Rf7 $11 {bleibt in der Remisbreite.}) 28. c3 {[%emt 0:03:31]} (28. Bxf5 $16 exf5 29. Qe3) 28... Bd7 $11 {[%emt 0:03:49]} 29. Qf3 {[%emt 0:02:32]} Rf7 {[%emt 0:01:02]} 30. Ra1 {[%emt 0:02:06]} Ng7 {[%emt 0:04:44]} 31. Rf1 {[%emt 0:05:45]} Ref8 {[%emt 0:02:16]} (31... Qb6 $5 32. Bc2 Bxa4 $15) 32. Bc1 {[%emt 0:00:44] Die Stellung ist ausgeglichen.} a6 {[%emt 0:03:08]} 33. Rf2 {[%emt 0:01:15]} b5 {[%emt 0:02:45]} 34. axb5 {[%emt 0:00:48]} axb5 {[%emt 0:02:33] Weiß hat ein paar 100-prozentige Torchancen vergeben.   Gewichteter Fehlerwert: Weiß=0.22 (präzise) /Schwarz=0.19 (sehr präzise) .  Fehler:       	Weiß=3     	Schwarz=4     Ungenau:       	Weiß=4     	Schwarz=3     OK:         	Weiß=6     	Schwarz=6     Bester:       	---       	Schwarz=1} 1/2-1/2

[Event "Bijnor Open 2024"]
[Site "Bijnor"]
[Date "2024.03.18"]
[Round "4.6"]
[White "Mahindrakar Indrajeet"]
[Black "Shaurya Prabhakar"]
[Result "1/2-1/2"]
[ECO "D00"]
[WhiteElo "2136"]
[BlackElo "1731"]
[Annotator "RC"]
[PlyCount "73"]
[EventDate "2024.03.17"]
[EventCountry "IND"]
[SourceTitle "playchess.com"]
[Source "ChessBase"]
[SourceQuality "1"]
[TimeControl "5400+30"]

1. d4 {[%emt 0:00:21]} d5 {[%emt 0:01:02]} 2. Bg5 {[%emt 0:00:25]} Nf6 {[%emt 0:01:00]} 3. Bxf6 {[%emt 0:00:14]} exf6 {[%emt 0:00:53]} 4. e3 {[%emt 0:00:17]} Be7 {[%emt 0:01:28]} 5. g3 {[%emt 0:01:05]} Nd7 {[%emt 0:01:10]} 6. Bg2 {[%emt 0:00:20]} c6 {[%emt 0:00:12]} 7. Ne2 {[%emt 0:01:42]} f5 {[%emt 0:00:26]} 8. O-O {[%emt 0:01:08]} Nf6 {[%emt 0:00:33]} 9. Nd2 {[%emt 0:00:22]} O-O {[%emt 0:01:11]} 10. c4 {[%emt 0:01:03]} Be6 {[%emt 0:06:01]} 11. Nf4 {[%emt 0:03:22]} Ne4 {[%emt 0:15:32]} 12. cxd5 {[%emt 0:03:32]} Bxd5 {[%emt 0:01:59]} 13. Nxd5 {[%emt 0:04:24]} cxd5 {[%emt 0:00:15]} 14. Nxe4 {[%emt 0:01:16]} fxe4 {[%emt 0:02:15]} 15. Qb3 {[%emt 0:01:31]} Qd7 {[%emt 0:01:46]} 16. f3 {[%emt 0:01:38]} exf3 {[%emt 0:05:22]} 17. Rxf3 {[%emt 0:03:15]} Rae8 {[%emt 0:02:57]} 18. Rc1 {[%emt 0:09:53]} b6 {[%emt 0:08:51]} 19. Rf2 {[%emt 0:09:32]} Bg5 {[%emt 0:03:58]} 20. Rc3 {[%emt 0:00:58]} Rd8 {[%emt 0:00:24]} 21. h4 {[%emt 0:01:20]} Bh6 {[%emt 0:01:06]} 22. Kh2 {[%emt 0:00:53]} Rfe8 {[%emt 0:03:06]} 23. Rfc2 {[%emt 0:06:25]} Qe6 {[%emt 0:02:45]} 24. Rf2 {[%emt 0:05:03]} Bxe3 {[%emt 0:01:03]} 25. Rf1 {[%emt 0:04:06]} Bxd4 {[%emt 0:04:41]} 26. Rc7 {[%emt 0:05:54]} Rd7 {[%emt 0:06:56]} 27. Rxd7 {[%emt 0:02:35]} Qxd7 {[%emt 0:00:07]} 28. Qxd5 {[%emt 0:04:47]} Qxd5 {[%emt 0:00:15]} 29. Bxd5 {[%emt 0:00:02]} Re2+ {[%emt 0:00:08]} 30. Kh3 {[%emt 0:00:31]} Rf2 {[%emt 0:01:29]} 31. Rxf2 {[%emt 0:03:01]} Bxf2 {[%emt 0:00:15]} 32. Kg2 {[%emt 0:00:20]} Bd4 {[%emt 0:00:07]} 33. b3 {[%emt 0:00:11]} Kf8 {[%emt 0:00:05]} 34. Kf3 {[%emt 0:00:38]} Ke7 {[%emt 0:00:12]} 35. a4 {[%emt 0:01:52]} a5 {[%emt 0:00:16]} 36. g4 {[%emt 0:01:31]} h6 {[%emt 0:00:49]} 37. Ke4 {[%emt 0:23:33]} 1/2-1/2

[Event "Bijnor Open 2024"]
[Site "Bijnor"]
[Date "2024.03.18"]
[Round "4.7"]
[White "Amartya Kumar"]
[Black "Balkishan, A.."]
[Result "0-1"]
[ECO "B22"]
[WhiteElo "1734"]
[BlackElo "2108"]
[Annotator "RC"]
[PlyCount "62"]
[EventDate "2024.03.17"]
[EventCountry "IND"]
[SourceTitle "playchess.com"]
[Source "ChessBase"]
[SourceQuality "1"]
[TimeControl "5400+30"]

1. e4 {[%emt 0:00:12]} c5 {[%emt 0:10:03]} 2. Nf3 {[%emt 0:00:47]} e6 {[%emt 0:00:03]} 3. c3 {[%emt 0:00:07]} d5 {[%emt 0:00:07]} 4. exd5 {[%emt 0:00:04]} exd5 {[%emt 0:00:46]} 5. d4 {[%emt 0:00:07]} Nf6 {[%emt 0:00:25]} 6. Bb5+ {[%emt 0:00:08]} Bd7 {[%emt 0:00:07]} 7. Bxd7+ {[%emt 0:00:06]} Nbxd7 {[%emt 0:00:06]} 8. O-O {[%emt 0:00:08]} Be7 {[%emt 0:00:41]} 9. dxc5 {[%emt 0:00:31]} Nxc5 {[%emt 0:00:10]} 10. Be3 {[%emt 0:00:08]} O-O {[%emt 0:00:18]} 11. Nbd2 {[%emt 0:00:07]} Ne6 {[%emt 0:01:36]} 12. Nb3 {[%emt 0:01:33]} Bd6 {[%emt 0:00:03]} 13. Qd3 {[%emt 0:02:55]} Qc7 {[%emt 0:00:56]} 14. h3 {[%emt 0:05:37]} Rfe8 {[%emt 0:00:30]} 15. Nbd4 {[%emt 0:01:54]} Nc5 {[%emt 0:01:01]} 16. Qf5 {[%emt 0:05:35]} a6 {[%emt 0:00:43]} 17. Bg5 {[%emt 0:03:26]} Nce4 {[%emt 0:00:03]} 18. Bxf6 {[%emt 0:00:13]} Nxf6 {[%emt 0:00:03]} 19. Rfe1 {[%emt 0:03:55]} Re4 {[%emt 0:00:04]} 20. Rxe4 {[%emt 0:01:48]} dxe4 {[%emt 0:00:07]} 21. Ng5 {[%emt 0:00:56]} Qe7 {[%emt 0:00:56]} 22. Re1 {[%emt 0:07:14]} g6 {[%emt 0:00:19]} 23. Qa5 {[%emt 0:00:19]} h6 {[%emt 0:06:20]} 24. Nxe4 {[%emt 0:11:20]} Nxe4 {[%emt 0:00:20]} 25. f3 {[%emt 0:00:51]} Qg5 {[%emt 0:00:40]} 26. Qb6 {[%emt 0:02:08]} Bg3 {[%emt 0:00:43]} 27. h4 {[%emt 0:01:46]} Qd2 {[%emt 0:00:44]} 28. Rf1 {[%emt 0:00:49]} Qe3+ {[%emt 0:00:03]} 29. Kh1 {[%emt 0:00:14]} Nf2+ {[%emt 0:00:05]} 30. Rxf2 {[%emt 0:00:04]} Qe1+ {[%emt 0:00:10]} 31. Rf1 {[%emt 0:00:04]} Qxf1# {[%emt 0:00:04]} 0-1

[Event "Bijnor Open 2024"]
[Site "Bijnor"]
[Date "2024.03.18"]
[Round "4.8"]
[White "Sanyam Srivastava"]
[Black "Singh, Arvinder Preet"]
[Result "0-1"]
[ECO "B26"]
[WhiteElo "1686"]
[BlackElo "2030"]
[Annotator "RC"]
[PlyCount "100"]
[EventDate "2024.03.17"]
[EventCountry "IND"]
[SourceTitle "playchess.com"]
[Source "ChessBase"]
[SourceQuality "1"]
[TimeControl "5400+30"]

1. e4 {[%emt 0:00:08]} c5 {[%emt 0:00:05]} 2. Nc3 {[%emt 0:00:09]} Nc6 {[%emt 0:00:09]} 3. g3 {[%emt 0:00:04]} g6 {[%emt 0:00:40]} 4. Bg2 {[%emt 0:00:08]} Bg7 {[%emt 0:00:02]} 5. d3 {[%emt 0:00:11]} d6 {[%emt 0:00:49]} 6. Be3 {[%emt 0:00:07]} e6 {[%emt 0:00:58]} 7. Qd2 {[%emt 0:00:06]} Rb8 {[%emt 0:01:03]} 8. Nge2 {[%emt 0:00:29]} Nd4 {[%emt 0:00:40]} 9. O-O {[%emt 0:01:03]} Ne7 {[%emt 0:00:19]} 10. f4 {[%emt 0:01:47]} O-O {[%emt 0:01:04]} 11. Nd1 {[%emt 0:00:43]} b5 {[%emt 0:02:02]} 12. Nc1 {[%emt 0:10:48]} b4 {[%emt 0:02:17]} 13. c3 {[%emt 0:01:32]} bxc3 {[%emt 0:00:16]} 14. bxc3 {[%emt 0:00:08]} Ndc6 {[%emt 0:08:16]} 15. Ne2 {[%emt 0:02:50]} Qa5 {[%emt 0:24:29]} 16. g4 {[%emt 0:12:14]} f5 {[%emt 0:02:33]} 17. gxf5 {[%emt 0:02:14]} exf5 {[%emt 0:04:15]} 18. Ng3 {[%emt 0:09:22]} Bd7 {[%emt 0:08:30]} 19. Rc1 {[%emt 0:06:34]} Kh8 {[%emt 0:05:38]} 20. exf5 {[%emt 0:16:26]} Nxf5 {[%emt 0:01:57]} 21. Nxf5 {[%emt 0:00:20]} Rxf5 {[%emt 0:03:04]} 22. Be4 {[%emt 0:04:22]} Rff8 {[%emt 0:00:47]} 23. Bf2 {[%emt 0:09:11]} Nd4 {[%emt 0:03:45]} 24. Bg3 {[%emt 0:20:14]} Nf5 {[%emt 0:05:09]} 25. Rc2 {[%emt 0:01:13]} Ba4 {[%emt 0:06:51]} 26. Rb2 {[%emt 0:00:30]} Bxd1 {[%emt 0:00:52]} 27. Rxb8 {[%emt 0:00:28]} Rxb8 {[%emt 0:00:51]} 28. Qxd1 {[%emt 0:00:32]} Ne3 {[%emt 0:00:54]} 29. Qf3 {[%emt 0:00:05]} Nxf1 {[%emt 0:00:16]} 30. Qxf1 {[%emt 0:00:14]} Qxc3 {[%emt 0:02:18]} 31. f5 {[%emt 0:00:09]} Rf8 {[%emt 0:02:38]} 32. Kh1 {[%emt 0:00:34]} Qf6 {[%emt 0:05:20]} 33. Qe1 {[%emt 0:01:18]} gxf5 {[%emt 0:00:16]} 34. Bd5 {[%emt 0:00:07]} f4 {[%emt 0:01:30]} 35. Bh4 {[%emt 0:00:12]} Qa1 {[%emt 0:00:20]} 36. Qxa1 {[%emt 0:00:13]} Bxa1 {[%emt 0:00:03]} 37. Be7 {[%emt 0:00:07]} Re8 {[%emt 0:00:13]} 38. Bg5 {[%emt 0:00:31]} Be5 {[%emt 0:01:05]} 39. Kg2 {[%emt 0:00:03]} Kg7 {[%emt 0:00:27]} 40. Kf3 {[%emt 0:00:07]} h6 {[%emt 0:00:10]} 41. Bh4 {[%emt 0:00:04]} Bf6 {[%emt 0:03:21]} 42. Bf2 {[%emt 0:00:56]} Bd4 {[%emt 0:00:24]} 43. Bxd4+ {[%emt 0:01:29]} cxd4 {[%emt 0:00:05]} 44. Kxf4 {[%emt 0:00:10]} Re3 {[%emt 0:00:27]} 45. Bc4 {[%emt 0:00:14]} Kf6 {[%emt 0:00:51]} 46. Kg4 {[%emt 0:00:15]} Ke5 {[%emt 0:00:13]} 47. a4 {[%emt 0:00:06]} d5 {[%emt 0:00:48]} 48. Ba6 {[%emt 0:00:06]} Kd6 {[%emt 0:01:30]} 49. h4 {[%emt 0:00:08]} Kc7 {[%emt 0:00:10]} 50. Kh5 {[%emt 0:04:29]} Re6 {[%emt 0:00:38]} 0-1

[Event "Bijnor Open 2024"]
[Site "Bijnor"]
[Date "2024.03.18"]
[Round "4.9"]
[White "Dutta, Joydeep"]
[Black "Shaurya Chaudhary"]
[Result "1-0"]
[ECO "A84"]
[WhiteElo "2041"]
[BlackElo "1731"]
[Annotator "RC"]
[PlyCount "53"]
[EventDate "2024.03.17"]
[EventCountry "IND"]
[SourceTitle "playchess.com"]
[Source "ChessBase"]
[SourceQuality "1"]
[TimeControl "5400+30"]

1. d4 {[%emt 0:00:04]} d5 {[%emt 0:00:46]} 2. c4 {[%emt 0:00:07]} c6 {[%emt 0:00:18]} 3. Nf3 {[%emt 0:00:32]} e6 {[%emt 0:00:09]} 4. e3 {[%emt 0:00:29]} f5 {[%emt 0:00:34]} 5. g4 {[%emt 0:01:25]} fxg4 {[%emt 0:08:32]} 6. Ne5 {[%emt 0:00:51]} Nf6 {[%emt 0:04:53]} 7. Nc3 {[%emt 0:02:44]} Bd6 {[%emt 0:02:34]} 8. Nxg4 {[%emt 0:06:19]} Nxg4 {[%emt 0:14:49]} 9. Qxg4 {[%emt 0:00:37]} Qf6 {[%emt 0:00:35]} 10. Rg1 {[%emt 0:12:36]} O-O {[%emt 0:01:03]} 11. Qg2 {[%emt 0:01:10]} e5 {[%emt 0:07:09]} 12. cxd5 {[%emt 0:03:17]} exd4 {[%emt 0:03:40]} 13. Ne4 {[%emt 0:03:52]} Bb4+ {[%emt 0:00:29]} 14. Kd1 {[%emt 0:00:54]} Qe5 {[%emt 0:04:29]} 15. f4 {[%emt 0:01:24]} Qh5+ {[%emt 0:07:24]} 16. Be2 {[%emt 0:00:58]} Qf7 {[%emt 0:01:19]} 17. a3 {[%emt 0:01:32]} dxe3 {[%emt 0:05:17]} 18. axb4 {[%emt 1:00:39]} cxd5 {[%emt 0:05:53]} 19. Nd6 {[%emt 0:00:00]} Qe7 {[%emt 0:01:00]} 20. Qg5 {[%emt 0:00:00]} Qxg5 {[%emt 0:04:41]} 21. Rxg5 {[%emt 0:00:00]} d4 {[%emt 0:00:10]} 22. Nxc8 {[%emt 0:00:00]} Rxc8 {[%emt 0:00:05]} 23. b5 {[%emt 0:00:00]} Rd8 {[%emt 0:02:46]} 24. Bf3 {[%emt 0:00:00]} Rd7 {[%emt 0:05:42]} 25. Ra4 {[%emt 0:00:00]} a6 {[%emt 0:00:26]} 26. Rd5 {[%emt 0:00:00]} d3 {[%emt 0:00:40]} 27. Bxe3 {[%emt 0:04:30]} 1-0

[Event "Bijnor Open 2024"]
[Site "Bijnor"]
[Date "2024.03.18"]
[Round "4.10"]
[White "Ram Prakash, R."]
[Black "Shivam Chaudhary"]
[Result "1-0"]
[ECO "C42"]
[WhiteElo "2191"]
[BlackElo "1701"]
[Annotator "RC"]
[PlyCount "93"]
[EventDate "2024.03.17"]
[EventCountry "IND"]
[SourceTitle "playchess.com"]
[Source "ChessBase"]
[SourceQuality "1"]
[TimeControl "5400+30"]

1. e4 {[%emt 0:00:08]} e5 {[%emt 0:00:04]} 2. Nf3 {[%emt 0:00:08]} Nf6 {[%emt 0:00:04]} 3. Nxe5 {[%emt 0:00:40]} d6 {[%emt 0:00:03]} 4. Nf3 {[%emt 0:00:07]} Nxe4 {[%emt 0:00:07]} 5. Nc3 {[%emt 0:00:06]} Nxc3 {[%emt 0:00:17]} 6. dxc3 {[%emt 0:00:06]} Be7 {[%emt 0:00:07]} 7. Be3 {[%emt 0:00:06]} Nd7 {[%emt 0:01:41]} 8. Be2 {[%emt 0:04:37]} O-O {[%emt 0:00:36]} 9. Qd2 {[%emt 0:01:23]} Nf6 {[%emt 0:00:41]} 10. O-O-O {[%emt 0:03:04]} c5 {[%emt 0:01:38]} 11. h3 {[%emt 0:00:43]} Be6 {[%emt 0:02:20]} 12. a3 {[%emt 0:11:21]} b5 {[%emt 0:11:22]} 13. Ng5 {[%emt 0:02:26]} Bc4 {[%emt 0:09:54]} 14. Bf3 {[%emt 0:02:05]} Rb8 {[%emt 0:00:45]} 15. Bf4 {[%emt 0:01:34]} Qb6 {[%emt 0:07:21]} 16. Rhe1 {[%emt 0:02:41]} Rfe8 {[%emt 0:08:51]} 17. Ne4 {[%emt 0:19:12]} Nxe4 {[%emt 0:08:19]} 18. Rxe4 {[%emt 0:00:53]} Be6 {[%emt 0:02:53]} 19. Bg4 {[%emt 0:00:57]} Bxg4 {[%emt 0:16:56]} 20. hxg4 {[%emt 0:00:05]} Bf8 {[%emt 0:00:48]} 21. Qd5 {[%emt 0:11:18]} Rxe4 {[%emt 0:07:39]} 22. Qxe4 {[%emt 0:00:12]} a5 {[%emt 0:03:25]} 23. Qd5 {[%emt 0:07:54]} Rd8 {[%emt 0:03:53]} 24. Be3 {[%emt 0:01:56]} Rb8 {[%emt 0:01:43]} 25. b3 {[%emt 0:06:54]} Qb7 {[%emt 0:02:20]} 26. g5 {[%emt 0:00:25]} Qxd5 {[%emt 0:01:05]} 27. Rxd5 {[%emt 0:00:03]} f6 {[%emt 0:03:40]} 28. gxf6 {[%emt 0:00:06]} gxf6 {[%emt 0:00:01]} 29. Kd2 {[%emt 0:03:07]} Kf7 {[%emt 0:00:21]} 30. Kd3 {[%emt 0:03:34]} Ke6 {[%emt 0:00:36]} 31. Ke4 {[%emt 0:00:52]} Re8 {[%emt 0:01:55]} 32. Rh5 {[%emt 0:02:04]} Re7 {[%emt 0:03:13]} 33. g4 {[%emt 0:05:20]} Rg7 {[%emt 0:01:37]} 34. f3 {[%emt 0:00:12]} Re7 {[%emt 0:00:03]} 35. Kd3 {[%emt 0:00:31]} Rd7 {[%emt 0:00:54]} 36. c4 {[%emt 0:02:08]} b4 {[%emt 0:00:38]} 37. a4 {[%emt 0:02:10]} d5 {[%emt 0:00:24]} 38. cxd5+ {[%emt 0:01:28]} Rxd5+ {[%emt 0:00:01]} 39. Kc4 {[%emt 0:03:28]} Rxh5 {[%emt 0:01:13]} 40. gxh5 {[%emt 0:00:02]} Kf5 {[%emt 0:00:21]} 41. Kb5 {[%emt 0:00:13]} Bd6 {[%emt 0:00:07]} 42. Kxa5 {[%emt 0:00:14]} Bf4 {[%emt 0:00:29]} 43. Bxf4 {[%emt 0:01:20]} Kxf4 {[%emt 0:00:02]} 44. Kb5 {[%emt 0:00:08]} Kxf3 {[%emt 0:00:07]} 45. a5 {[%emt 0:00:04]} Ke2 {[%emt 0:00:16]} 46. a6 {[%emt 0:00:05]} f5 {[%emt 0:00:02]} 47. a7 {[%emt 0:00:10]} 1-0

[Event "Bijnor Open 2024"]
[Site "Bijnor"]
[Date "2024.03.19"]
[Round "5.1"]
[White "Neelash Saha"]
[Black "Srihari L R"]
[Result "*"]
[ECO "A11"]
[WhiteElo "2463"]
[BlackElo "2490"]
[Annotator "TA"]
[PlyCount "31"]
[EventDate "2024.03.17"]
[EventCountry "IND"]
[SourceTitle "playchess.com"]
[Source "ChessBase"]
[SourceQuality "1"]
[TimeControl "5400+30"]

{[%evp 9,31,11,15,9,21,12,21,19,25,16,25,14,15,16,51,18,23,10,25,22,36,26,32,33]} 1. Nf3 {[%emt 0:00:05]} d5 {[%emt 0:02:35]} 2. e3 {[%emt 0:00:27]} c6 {[%emt 0:04:15]} 3. c4 {[%emt 0:00:07]} Nf6 {[%emt 0:00:09]} 4. Qc2 {[%emt 0:00:05]} e6 {[%emt 0:06:18]} 5. b3 {[%emt 0:00:06]} Nbd7 {[%emt 0:00:17]} 6. Bb2 {[%emt 0:00:05]} Bd6 {[%emt 0:00:05]} 7. d4 {[%emt 0:00:12]} Qc7 {[%emt 0:05:39]} 8. Nbd2 {[%emt 0:00:52] The position is equal.} b6 {[%emt 0:00:37]} 9. Rc1 {[%emt 0:02:51]} Bb7 {[%emt 0:00:17]} 10. a3 {[%emt 0:01:38]} a5 {[%emt 0:05:40]} 11. Bd3 {[%emt 0:00:27]} h6 {[%emt 0:01:14]} 12. O-O {[%emt 0:02:05]} O-O {[%emt 0:03:50]} 13. Qb1 {[%emt 0:01:06]} c5 {[%emt 0:09:29]} 14. cxd5 {[%emt 0:01:35]} exd5 {[%emt 0:00:57]} 15. Rfd1 {[%emt 0:01:02]} Rac8 {[%emt 0:03:12]} 16. Nf1 {[%emt 0:01:20] Weighted Error Value: White=0.08 (flawless) /Black=0.08 (flawless) .  Inaccurate:     	White=1     	Black=1      OK:         	White=2     	Black=3} *

[Event "Bijnor Open 2024"]
[Site "Bijnor"]
[Date "2024.03.19"]
[Round "5.1"]
[White "Balkishan, A.."]
[Black "Srihari L R"]
[Result "1/2-1/2"]
[ECO "D17"]
[WhiteElo "2108"]
[BlackElo "2490"]
[Annotator "TA"]
[PlyCount "85"]
[EventDate "2024.03.17"]
[EventCountry "IND"]
[SourceTitle "playchess.com"]
[Source "ChessBase"]
[SourceQuality "1"]
[TimeControl "5400+30"]

{[%evp 21,85,0,0,0,17,9,17,7,19,27,22,0,0,-2,0,-10,0,0,20,14,13,0,0,0,0,0,0,0,0,0,0,-19,-20,-82,-83,-83,-68,-89,-86,-138,-142,-213,-207,-216,-152,-142,-134,-162,-133,-129,-118,-124,-105,-175,-169,-215,-185,-216,-8,-27,-27,-27,-8,-8,0,0]} 1. d4 {[%emt 0:02:19]} d5 {[%emt 0:00:19]} 2. c4 {[%emt 0:00:13]} c6 {[%emt 0:00:11]} 3. Nc3 {[%emt 0:00:05]} Nf6 {[%emt 0:00:07]} 4. Nf3 {[%emt 0:02:09][%cal Bg1f3,Bf3e5,Be5c4][%mdl 32]} dxc4 {[%emt 0:00:12]} 5. a4 {[%emt 0:00:03]} Bf5 {[%emt 0:01:31]} 6. Ne5 {[%emt 0:00:06]} Nbd7 {[%emt 0:00:10]} 7. Nxc4 {[%emt 0:00:04]} Qc7 {[%emt 0:00:08]} 8. g3 {[%emt 0:02:29]} e5 {[%emt 0:00:55]} 9. dxe5 {[%emt 0:03:25]} Nxe5 {[%emt 0:00:08]} 10. Bf4 {[%emt 0:02:07]} Nfd7 {[%emt 0:02:09]} 11. Nxe5 {[%emt 0:02:48]} Nxe5 {[%emt 0:00:36]} 12. Bg2 {[%emt 0:01:15]} Rd8 {[%emt 0:14:47]} 13. Qb3 {[%emt 0:00:42] Schwarz sollte Bxe5 verhindern.} Bd6 {[%emt 0:20:42]} 14. O-O {[%emt 0:01:03]} Qb6 {[%emt 0:05:21]} 15. Qxb6 {[%emt 0:02:21]} axb6 {[%emt 0:00:07]} 16. Rfd1 {[%emt 0:08:04][%cal Od1d6] Und Rxd6! würde nun gewinnen.} f6 {[%emt 0:12:06]} 17. a5 {[%emt 0:03:21]} bxa5 {[%emt 0:39:31]} 18. Rxa5 {[%emt 0:00:27]} O-O {[%emt 0:00:00]} 19. Ra7 {[%emt 0:03:23]} Bb4 {[%emt 0:00:00] Droht ...Bxc3 und aus.} 20. Rxd8 {[%emt 0:03:12]} (20. Rxb7 $2 Bxc3 21. Ra1 (21. Rxd8 $2 Rxd8 22. Bxc6 Nxc6 $19) 21... g5 22. Bxg5 fxg5 $19) 20... Rxd8 {[%emt 0:00:00]} 21. h3 {[%emt 0:00:26]} (21. Rxb7 $2 {geht unter.} Bxc3 22. Bxc6 (22. bxc3 {ist ein Selbstmatt.} Rd1+ 23. Bf1 Bh3 24. Rb8+ Kf7 25. Rb7+ Ke6) 22... Nxc6 $19) 21... Rd7 {[%emt 0:00:00]} 22. g4 {[%emt 0:07:21]} Be6 {[%emt 0:00:00]} 23. Ra4 {[%emt 0:08:45]} Be7 {[%emt 0:00:00]} 24. Bxe5 {[%emt 0:04:58]} fxe5 {[%emt 0:00:00]} 25. Be4 {[%emt 0:01:30]} Kf7 {[%emt 0:00:00]} 26. Bd3 {[%emt 0:03:33]} Rd4 {[%emt 0:00:00]} 27. Rxd4 {[%emt 0:04:05]} (27. Ra7 $11 {hält das Gleichgewicht.}) 27... exd4 $11 {[%emt 0:00:00][%mdl 4096] Endspiel. KBB-KBN} 28. Ne4 {[%emt 0:00:11]} h6 {[%emt 0:00:00]} 29. Kg2 {[%emt 0:01:36]} Bd5 {[%emt 0:00:00]} 30. Kg3 {[%emt 0:00:01] [#]} (30. Kf1 $142) 30... c5 $1 $17 {[%emt 0:00:00]} 31. f4 {[%emt 0:01:44]} (31. Bb1 $17 {ist wohl besser.}) 31... c4 $19 {[%emt 0:00:00]} 32. Bb1 {[%emt 0:00:16]} Ke6 {[%emt 0:00:00]} 33. h4 {[%emt 0:01:04]} b5 {[%emt 0:00:00]} 34. g5 {[%emt 0:02:14]} b4 {[%emt 0:00:00] Droht stark ...c3.} 35. b3 {[%emt 0:02:58]} cxb3 {[%emt 0:00:18]} 36. Nf2 {[%emt 0:02:08]} Bd6 {[%emt 0:03:14]} 37. Kg4 {[%emt 0:02:31]} (37. Bd3 $17 {war angesagt.}) 37... h5+ {[%emt 0:03:27]} 38. Kxh5 {[%emt 0:08:32]} (38. Kg3 $142) 38... Bxf4 {[%emt 0:00:01] Und jetzt ...Be3 wäre schön.} 39. Nd3 {[%emt 0:00:50] [#]} Bg3 {[%emt 0:01:52]} (39... Kf5 $1 $19 {( -> ...Bf7+)} 40. Nc5+ d3 41. Bxd3+ Ke5) 40. Nxb4 {[%emt 0:01:00]} Bc4 {[%emt 0:00:32]} 41. Kg4 $1 {[%emt 0:02:49]} Be1 {[%emt 0:01:48]} (41... Bxe2+ $2 {verliert.} 42. Kxg3 Bh5 43. Nd3 $18) 42. Nd3 {[%emt 0:00:15]} Bxd3 {[%emt 0:00:45]} 43. Bxd3 {[%emt 0:13:37] Gewichteter Fehlerwert: Weiß=0.15 (sehr präzise) /Schwarz=0.22 (präzise) .  Gewinn verpasst:   	---       	Schwarz=1     Fehler:       	Weiß=5     	---        OK:         	Weiß=13    	Schwarz=10    Bester:       	Weiß=1     	Schwarz=2     Stark:        	Weiß=1     	Schwarz=1} 1/2-1/2